bitfinex-derivatives/quotes_SOLF0:USTF0_20250320
["timestamp","ask_amount","ask_price","bid_price","bid_amount"]
[1742482545299,28.94,131.28,131.22,17.65694252]
[1742482545499,7.6216,131.27,131.22,17.65694252]
[1742482546101,36.5612,131.28,131.22,17.65694252]
[1742482546395,36.5612,131.28,131.25,7.6222]
[1742482546799,36.5612,131.28,131.25,7.67307613]
[1742482546998,7.6215,131.27,131.25,0.05087613]
[1742482547996,7.6221,131.26,131.25,0.05087613]
[1742482549302,28.94,131.28,131.25,0.05087613]
[1742482549902,28.94,131.28,131.27,7.6215]
[1742482550105,33.0602,131.3,131.25,0.05087613]
[1742482550302,4.1202,131.3,131.25,0.05087613]
[1742482550505,4.1202,131.3,131.27,7.621]
[1742482551302,7.6209,131.28,131.25,0.05087613]
[1742482551509,4.1202,131.3,131.25,0.05087613]
[1742482553009,4.1202,131.3,131.25,7.67317613]
[1742482553211,4.1202,131.3,131.25,0.05087613]
[1742482553403,7.6218,131.27,131.25,0.05087613]
[1742482554112,7.6218,131.27,131.25,7.67327613]
[1742482554311,7.6212,131.28,131.25,7.67327613]
[1742482554511,7.6212,131.28,131.25,0.05087613]
[1742482555013,7.6205,131.29,131.25,0.05087613]
[1742482555213,37.2833,131.31,131.25,0.05087613]
[1742482555413,8.3633,131.31,131.25,0.05087613]
[1742482555715,7.62,131.3,131.28,7.6205]
[1742482556009,8.3633,131.31,131.26,28.92]
[1742482556312,7.6207,131.29,131.28,0.05514916]
[1742482559423,4.0994,131.34,131.28,0.05514916]
[1742482559824,4.0994,131.34,131.29,28.92]
[1742482560020,28.92,131.36,131.29,28.92]
[1742482560519,28.92,131.36,131.31,0.05566093]
[1742482560924,17.60744161,131.37,131.31,7.67456093]
[1742482561120,28.92,131.36,131.31,7.67456093]
[1742482561513,7.6184,131.33,131.31,0.05566093]
[1742482561718,28.92,131.36,131.31,0.05566093]
[1742482562022,7.6177,131.34,131.31,7.67426093]
[1742482562323,28.92,131.36,131.31,0.05566093]
[1742482562726,7.6186,131.32,131.31,0.05566093]
[1742482563022,36.5386,131.32,131.31,0.05566093]
[1742482563825,7.6208,131.29,131.26,28.92]
[1742482564024,28.92,131.32,131.26,28.92]
[1742482564727,28.92,131.32,131.27,7.6212]
[1742482564922,0.05342687,131.31,131.28,0.05737013]
[1742482565122,7.6203,131.29,131.28,0.05737013]
[1742482566131,7.6225,131.26,131.22,21.83214161]
[1742482566427,46.52744161,131.29,131.22,33.1447]
[1742482566825,46.52744161,131.29,131.22,28.92]
[1742482567128,46.52744161,131.29,131.21,28.92]
[1742482567329,46.52744161,131.29,131.25,0.04959434]
[1742482567330,0.05029945,131.27,131.25,0.04959434]
[1742482567925,7.6224,131.26,131.25,0.04959434]
[1742482568429,36.5424,131.26,131.25,0.04959434]
[1742482568631,388.9523,131.26,131.16,10.4247293]
[1742482568831,17.60744161,131.22,131.16,10.4247293]
[1742482569027,28.92,131.21,131.18,7.6262]
[1742482569425,28.92,131.21,131.16,10.4247293]
[1742482569625,0.05228157,131.2,131.17,7.67703073]
[1742482569822,0.05228157,131.2,131.17,0.04993073]
[1742482571130,0.05228157,131.2,131.19,7.6261]
[1742482574631,8.157e-05,131.2,131.19,7.6261]
[1742482574832,12.4109,131.29,131.25,7.6224]
[1742482575138,28.92,131.28,131.21,28.92]
[1742482575336,12.4109,131.29,131.21,28.92]
[1742482575635,41.3309,131.29,131.21,28.92]
[1742482575836,48.9517,131.29,131.26,7.622]
[1742482576434,41.38170062,131.29,131.24,7.67213561]
[1742482576635,41.38170062,131.29,131.24,0.04913561]
[1742482576829,12.46170062,131.29,131.24,0.04913561]
[1742482577136,28.92,131.28,131.24,0.04913561]
[1742482578133,7.6227,131.25,131.24,0.04913561]
[1742482578337,36.5427,131.25,131.24,0.04913561]
[1742482581033,28.92,131.25,131.24,0.04913561]
[1742482581237,0.05443436,131.26,131.24,0.04913561]
[1742482581637,7.6227,131.25,131.24,0.04913561]
[1742482583343,0.05443436,131.26,131.24,0.04913561]
[1742482583838,7.6227,131.25,131.24,0.04913561]
[1742482584933,7.67673436,131.26,131.24,0.04913561]
[1742482585941,7.6227,131.25,131.24,0.04913561]
[1742482587738,7.6253,131.21,131.17,28.92]
[1742482587940,7.6253,131.21,131.16,28.92]
[1742482588241,28.92,131.23,131.14,283.61081762]
[1742482588442,28.92,131.23,131.14,255.4973]
[1742482588642,28.92,131.23,131.15,37.229]
[1742482588832,7.6265,131.19,131.18,0.05629513]
[1742482589237,28.97647412,131.2,131.18,0.05629513]
[1742482589438,36.60237412,131.2,131.18,0.05629513]
[1742482590045,0.05647412,131.2,131.18,0.05629513]
[1742482590343,0.05647412,131.2,131.18,28.97629513]
[1742482590546,28.92,131.24,131.18,28.97629513]
[1742482590841,41.3309,131.29,131.19,28.11351762]
[1742482591051,7.6215,131.27,131.25,7.6225]
[1742482591636,7.6221,131.26,131.25,0.05768848]
[1742482591836,0.05557803,131.27,131.25,0.05768848]
[1742482592241,0.05557803,131.27,131.26,7.6221]
[1742482593442,28.9,131.32,131.25,46.50981186]
[1742482593646,36.5185,131.33,131.25,46.45212338]
[1742482593849,28.9,131.33,131.3,7.6195]
[1742482594145,7.6189,131.32,131.25,46.45212338]
[1742482594349,7.6189,131.32,131.3,7.6197]
[1742482594550,28.9,131.33,131.27,17.55212338]
[1742482594750,0.05520889,131.32,131.3,0.05042581]
[1742482594950,381.3123,131.38,131.31,7.6192]
[1742482595443,17.55212338,131.37,131.3,7.6194]
[1742482596040,17.55212338,131.37,131.29,7.6201]
[1742482596242,17.55212338,131.35,131.32,0.05790153]
[1742482596444,28.9,131.34,131.32,0.05790153]
[1742482596644,17.55212338,131.33,131.26,4.2334]
[1742482597845,0.0481305,131.31,131.28,0.05009379]
[1742482598151,0.0481305,131.31,131.28,7.67079379]
[1742482598543,7.6199,131.3,131.28,0.05009379]
[1742482599445,7.6203,131.29,131.28,0.05009379]
[1742482601349,7.62,131.3,131.28,0.05009379]
[1742482601844,7.6203,131.29,131.28,0.05009379]
[1742482602350,25.17242338,131.29,131.28,0.05009379]
[1742482602747,17.55212338,131.29,131.21,28.9]
[1742482603049,17.55212338,131.27,131.2,255.6189]
[1742482603547,17.55212338,131.27,131.2,263.2441]
[1742482603748,7.6235,131.24,131.2,255.6189]
[1742482603949,36.5235,131.24,131.22,0.05718123]
[1742482604952,7.6238,131.23,131.22,0.05718123]
[1742482605251,28.9,131.24,131.22,0.05718123]
[1742482606447,0.0575964,131.25,131.22,0.05718123]
[1742482607842,0.0575964,131.25,131.24,7.6232]
[1742482608852,28.9,131.29,131.28,7.6206]
[1742482609150,28.9,131.3,131.28,7.6206]
[1742482609651,28.9,131.3,131.24,41.1348]
[1742482610049,0.05432584,131.28,131.27,7.6215]
[1742482610850,28.9,131.31,131.3,7.6196]
[1742482611447,352.4123,131.33,131.32,7.6186]
[1742482611448,28.9,131.33,131.32,7.6186]
[1742482612148,352.4123,131.38,131.31,0.05311606]
[1742482612356,36.5159,131.37,131.31,0.05311606]
[1742482612653,28.9,131.37,131.31,0.05311606]
[1742482613254,28.88,131.37,131.31,17.60523944]
[1742482613552,28.88,131.37,131.36,7.616]
[1742482613850,28.88,131.39,131.33,46.43212338]
[1742482614048,28.88,131.41,131.39,7.6144]
[1742482614245,11.827,131.42,131.35,17.55212338]
[1742482614447,28.88,131.42,131.39,0.05490515]
[1742482615657,28.88,131.42,131.39,7.66930515]
[1742482615956,28.88,131.42,131.39,0.05490515]
[1742482617050,40.6501,131.44,131.39,0.05490515]
[1742482617252,33.0381,131.44,131.39,0.05490515]
[1742482617454,7.6125,131.43,131.39,0.05490515]
[1742482617848,33.0381,131.44,131.39,0.05490515]
[1742482618257,61.07347398,131.44,131.39,0.05490515]
[1742482619955,33.0381,131.44,131.39,0.05490515]
[1742482620751,4.1581,131.44,131.39,0.05490515]
[1742482620950,7.6128,131.42,131.39,0.05490515]
[1742482621152,33.0381,131.44,131.39,0.05490515]
[1742482621857,33.0381,131.44,131.39,28.91490515]
[1742482622053,7.6131,131.42,131.39,28.91490515]
[1742482622856,33.0381,131.44,131.39,0.05490515]
[1742482623359,7.614,131.4,131.39,0.05490515]
[1742482627551,7.6168,131.36,131.33,251.46]
[1742482627756,28.86,131.38,131.33,251.46]
[1742482628759,7.6164,131.36,131.34,0.0495558]
[1742482628966,0.05418098,131.37,131.34,0.0495558]
[1742482629781,0.05418098,131.37,131.35,7.6164]
[1742482630077,0.05418098,131.37,131.35,36.4764]
[1742482630278,0.05418098,131.37,131.35,28.86]
[1742482630675,0.05418098,131.37,131.35,36.4764]
[1742482630880,28.86,131.42,131.35,56.89537398]
[1742482631082,8.4237,131.44,131.35,61.02107398]
[1742482631375,381.2723,131.45,131.37,28.03537398]
[1742482631574,352.4123,131.45,131.38,28.86]
[1742482631779,381.2723,131.45,131.38,37.242]
[1742482632075,352.4123,131.45,131.4,0.04980496]
[1742482632275,28.86,131.46,131.4,0.04980496]
[1742482632577,28.86,131.46,131.41,28.86]
[1742482632877,7.6096,131.48,131.45,7.611]
[1742482633269,7.6096,131.48,131.45,0.05219558]
[1742482633478,7.61,131.47,131.45,0.05219558]
[1742482633983,7.6105,131.46,131.45,0.05219558]
[1742482635380,381.2723,131.5,131.45,0.05219558]
[1742482638278,7.6105,131.46,131.45,0.05219558]
[1742482638678,7.6103,131.47,131.45,0.05219558]
[1742482638879,28.84,131.5,131.45,0.05219558]
[1742482639485,28.84,131.5,131.45,17.5550264]
[1742482639679,36.9633,131.52,131.46,28.84]
[1742482640079,28.84,131.51,131.48,0.05860361]
[1742482640273,7.6087,131.49,131.48,0.05860361]
[1742482641077,28.84,131.51,131.48,0.05860361]
[1742482641785,46.34283082,131.51,131.48,0.05860361]
[1742482642181,17.50283082,131.49,131.41,53.95603082]
[1742482642485,28.84,131.48,131.41,53.95603082]
[1742482642783,7.6114,131.45,131.41,53.95593082]
[1742482643279,7.6107,131.46,131.41,46.34283082]
[1742482643582,0.05099674,131.44,131.42,0.05766142]
[1742482643780,7.66319674,131.44,131.42,0.05766142]
[1742482643978,0.05099674,131.44,131.42,0.05766142]
[1742482644380,7.66289674,131.44,131.42,0.05766142]
[1742482644587,0.05099674,131.44,131.42,0.05766142]
[1742482645187,0.05099674,131.44,131.43,7.6122]
[1742482645381,28.84,131.49,131.43,46.34283082]
[1742482645882,17.50283082,131.51,131.43,46.34283082]
[1742482646188,28.84,131.51,131.43,46.34283082]
[1742482646388,7.6091,131.49,131.46,7.61]
[1742482646590,7.6091,131.49,131.46,7.66288173]
[1742482647280,7.6084,131.5,131.47,7.6099]
[1742482647486,28.84,131.51,131.46,28.89288173]
[1742482647888,28.84,131.51,131.48,7.609]
[1742482648090,389.3756,131.52,131.48,7.609]
[1742482648483,7.608,131.51,131.49,0.04957924]
[1742482649187,7.6082,131.5,131.49,0.04957924]
[1742482651691,7.6078,131.51,131.49,0.04957924]
[1742482652086,389.3556,131.52,131.49,0.04957924]
[1742482652287,7.6082,131.5,131.49,0.04957924]
[1742482653093,7.6076,131.51,131.49,0.04957924]
[1742482653284,28.82,131.52,131.49,0.04957924]
[1742482653481,28.82,131.55,131.49,0.04957924]
[1742482653687,7.6061,131.54,131.49,28.86957924]
[1742482653886,7.6061,131.54,131.49,46.37241006]
[1742482654189,7.6061,131.54,131.51,7.6071]
[1742482654590,7.6055,131.55,131.49,46.37241006]
[1742482654790,37.1662,131.56,131.49,46.37241006]
[1742482654988,37.1662,131.56,131.49,28.86957924]
[1742482655194,17.50283082,131.55,131.49,28.86957924]
[1742482655395,17.50283082,131.55,131.49,0.04957924]
[1742482656187,17.50283082,131.53,131.49,0.04957924]
[1742482656391,28.82,131.52,131.49,0.04957924]
[1742482656594,7.6082,131.5,131.49,0.04957924]
[1742482661994,7.6114,131.45,131.41,251.06]
[1742482662499,28.82,131.47,131.41,251.06]
[1742482662894,17.50283082,131.46,131.37,160.9165351]
[1742482663097,17.50283082,131.44,131.38,41.71152433]
[1742482663392,7.6128,131.42,131.41,0.04998354]
[1742482664001,36.48506182,131.43,131.41,0.04998354]
[1742482664500,28.87266182,131.43,131.41,0.04998354]
[1742482664902,7.6128,131.42,131.41,0.04998354]
[1742482665095,28.87266182,131.43,131.41,0.04998354]
[1742482665602,7.6128,131.42,131.41,0.04998354]
[1742482665801,28.87266182,131.43,131.41,0.04998354]
[1742482666001,7.6128,131.42,131.41,0.04998354]
[1742482666792,7.6153,131.38,131.36,251.06]
[1742482667298,28.82,131.4,131.33,46.32283082]
[1742482667897,28.82,131.4,131.36,0.05524108]
[1742482667898,0.04931067,131.38,131.36,0.05524108]
[1742482668303,0.04931067,131.38,131.37,7.6157]
[1742482668497,0.04931067,131.38,131.36,0.05524108]
[1742482669107,0.04931067,131.38,131.36,7.67114108]
[1742482669494,0.04931067,131.38,131.36,0.05524108]
[1742482669903,0.04931067,131.38,131.37,7.6157]
[1742482670592,0.04931067,131.38,131.37,25.11853082]
[1742482670798,28.82,131.42,131.41,7.6134]
[1742482671702,360.0236,131.45,131.41,7.6134]
[1742482671899,0.05703317,131.43,131.4,0.05755999]
[1742482672203,28.82,131.45,131.39,46.32283082]
[1742482672402,0.04994986,131.43,131.4,0.05470951]
[1742482673704,0.04994986,131.43,131.42,7.6128]
[1742482675001,0.04994986,131.43,131.41,7.6133]
[1742482676300,0.04994986,131.43,131.42,7.6128]
[1742482676804,0.04994986,131.43,131.41,7.6131]
[1742482677006,0.04994986,131.43,131.4,0.05470951]
[1742482677405,0.04994986,131.43,131.41,7.6134]
[1742482677603,0.04994986,131.43,131.4,0.05470951]
[1742482677905,0.04994986,131.43,131.4,28.87470951]
[1742482678305,0.04994986,131.43,131.42,7.6128]
[1742482680699,7.6096,131.48,131.46,7.6104]
[1742482680904,46.32283082,131.48,131.4,28.87470951]
[1742482681105,17.50283082,131.44,131.38,8.5826]
[1742482681404,46.32283082,131.44,131.41,7.6131]
[1742482681602,46.32283082,131.44,131.37,279.98]
[1742482681798,46.32283082,131.44,131.37,251.16]
[1742482681999,17.50283082,131.42,131.39,0.05447724]
[1742482682204,17.50283082,131.42,131.33,25.66773082]
[1742482682205,17.50283082,131.4,131.33,36.9849]
[1742482682508,17.50283082,131.4,131.33,4.1813]
[1742482682905,7.6155,131.38,131.35,7.6163]
[1742482683107,36.4355,131.38,131.35,7.6163]
[1742482683299,36.4355,131.38,131.35,7.66524658]
[1742482683506,36.48824423,131.38,131.35,7.66524658]
[1742482683812,36.48824423,131.38,131.36,7.6161]
[1742482684001,28.87274423,131.38,131.36,7.6161]
[1742482684201,28.87274423,131.38,131.35,0.04894658]
[1742482684407,28.87274423,131.38,131.36,7.6163]
[1742482684904,36.48794423,131.38,131.36,7.6163]
[1742482685112,36.48794423,131.38,131.35,0.04894658]
[1742482685113,28.87274423,131.38,131.35,0.04894658]
[1742482685304,46.37557505,131.38,131.35,0.04894658]
[1742482685605,25.11913082,131.36,131.35,0.04894658]
[1742482685802,17.50283082,131.36,131.3,41.71152433]
[1742482686007,28.82,131.35,131.3,41.71152433]
[1742482686204,7.619,131.32,131.3,41.71152433]
[1742482686399,17.50283082,131.34,131.3,41.71152433]
[1742482686704,36.4388,131.32,131.3,41.71152433]
[1742482686907,28.82,131.32,131.3,41.71152433]
[1742482687107,28.87127454,131.32,131.3,41.76605216]
[1742482687312,28.87127454,131.32,131.3,7.67412783]
[1742482687614,28.87127454,131.32,131.3,0.05452783]
[1742482687815,0.05127454,131.32,131.31,7.6192]
[1742482688313,0.05127454,131.32,131.3,0.05452783]
[1742482688314,0.05127454,131.32,131.3,7.67402783]
[1742482689116,0.05127454,131.32,131.31,7.6192]
[1742482692215,28.82,131.37,131.31,46.32283082]
[1742482692421,28.82,131.37,131.31,50.43563082]
[1742482692624,28.82,131.37,131.36,7.6163]
[1742482693014,28.82,131.39,131.36,7.6163]
[1742482693314,0.05828036,131.38,131.35,0.05658631]
[1742482694520,0.05828036,131.38,131.37,7.6157]
[1742482697219,28.82,131.42,131.4,7.6136]
[1742482697522,28.82,131.42,131.35,17.50283082]
[1742482697715,28.82,131.42,131.38,7.615]
[1742482698214,7.6136,131.41,131.38,7.615]
[1742482698417,28.82,131.42,131.39,7.6713855]
[1742482698915,28.82,131.42,131.39,0.0568855]
[1742482699319,28.82,131.42,131.33,251.3]
[1742482699320,7.6148,131.39,131.33,251.3]
[1742482699518,28.82,131.38,131.34,7.6174]
[1742482699720,28.82,131.38,131.33,251.3]
[1742482700019,36.4355,131.38,131.32,8.3342]
[1742482700218,28.82,131.38,131.32,8.3342]
[1742482700420,0.05028532,131.36,131.35,7.6168]
[1742482702116,0.05028532,131.36,131.34,0.05136922]
[1742482702718,0.05028532,131.36,131.35,7.6169]
[1742482706424,0.05028532,131.36,131.34,7.66856922]
[1742482706620,28.87028532,131.36,131.34,0.05136922]
[1742482706822,7.6169,131.35,131.34,0.05136922]
[1742482709318,17.50283082,131.35,131.28,251.28]
[1742482709529,17.50283082,131.33,131.24,73.26583972]
[1742482709827,37.185,131.32,131.24,73.26583972]
[1742482710022,28.82,131.32,131.25,17.50283082]
[1742482710225,36.4388,131.32,131.29,7.62]
[1742482710527,0.04816264,131.3,131.27,0.05278804]
[1742482710717,0.04816264,131.3,131.27,17.55561886]
[1742482710921,0.04816264,131.3,131.29,7.6203]
[1742482711923,352.4123,131.41,131.29,17.50283082]
[1742482712229,33.1301,131.38,131.32,17.50283082]
[1742482712424,40.7455,131.38,131.35,7.6165]
[1742482712821,28.82,131.38,131.32,46.32283082]
[1742482713022,28.82,131.38,131.37,7.6157]
[1742482713224,28.82,131.4,131.34,17.55240903]
[1742482713520,0.05695676,131.39,131.38,7.6147]
[1742482715428,7.67155676,131.39,131.37,0.05777581]
[1742482716028,0.05695676,131.39,131.37,0.05777581]
[1742482716626,7.6151,131.38,131.37,0.05777581]
[1742482716827,36.4351,131.38,131.37,0.05777581]
[1742482720929,36.4351,131.38,131.37,7.581e-05]
[1742482721131,44.7788,131.38,131.37,7.581e-05]
[1742482722133,44.7837,131.38,131.28,50.41923082]
[1742482722334,17.50283082,131.36,131.28,50.41923082]
[1742482722533,28.82,131.35,131.28,50.41923082]
[1742482722729,36.4374,131.35,131.28,50.41923082]
[1742482722935,28.82,131.35,131.28,50.41923082]
[1742482723233,0.05184532,131.33,131.31,0.05843472]
[1742482723633,0.05184532,131.33,131.32,7.6186]
[1742482725533,4.1864,131.41,131.32,17.50283082]
[1742482725835,4.1864,131.41,131.35,17.50283082]
[1742482725836,28.82,131.41,131.35,17.50283082]
[1742482726031,7.614,131.4,131.38,7.6151]
[1742482726232,28.82,131.41,131.38,7.6151]
[1742482726628,36.4338,131.41,131.38,7.6151]
[1742482726832,36.49143366,131.41,131.38,7.66407342]
[1742482728133,7.67143366,131.41,131.39,7.6144]
[1742482728441,0.05763366,131.41,131.38,0.04897342]
[1742482728737,0.05763366,131.41,131.4,7.614]
[1742482732044,0.05763366,131.41,131.39,17.50283082]
[1742482732345,28.85763366,131.41,131.38,0.04897342]
[1742482733145,0.05763366,131.41,131.38,28.84897342]
[1742482733748,0.05763366,131.41,131.39,7.6142]
[1742482733947,0.05763366,131.41,131.38,28.84897342]
[1742482734348,0.05763366,131.41,131.4,7.614]
[1742482734543,255.456,131.49,131.39,43.23846164]
[1742482734752,378.00003082,131.52,131.43,17.50283082]
[1742482735043,28.8,131.51,131.45,17.50283082]
[1742482735243,28.8,131.5,131.45,17.50283082]
[1742482735738,378.00003082,131.52,131.46,0.05863472]
[1742482735945,28.8,131.51,131.46,0.05863472]
[1742482736550,7.6095,131.48,131.46,0.05863472]
[1742482738052,7.6099,131.47,131.46,0.05863472]
[1742482738551,28.8,131.51,131.46,0.05863472]
[1742482738753,7.6099,131.47,131.46,0.05863472]
[1742482748258,28.78,131.51,131.46,0.05863472]
[1742482748958,7.6084,131.5,131.46,0.05863472]
[1742482749159,28.78,131.51,131.46,0.05863472]
[1742482750160,28.78,131.51,131.46,7.66883472]
[1742482750662,7.609,131.49,131.46,7.66883472]
[1742482751056,28.78,131.51,131.46,7.66883472]
[1742482752058,7.6091,131.49,131.47,7.6099]
[1742482752760,7.6091,131.49,131.46,7.66883472]
[1742482753562,7.6093,131.48,131.46,7.66883472]
[1742482754062,28.78,131.51,131.46,7.66883472]
[1742482754063,7.6099,131.47,131.46,0.05863472]
[1742482754555,28.78,131.51,131.46,0.05863472]
[1742482754960,28.78,131.51,131.46,7.66883472]
[1742482756164,46.28283082,131.51,131.46,0.05863472]
[1742482756659,7.6099,131.47,131.46,0.05863472]
[1742482757859,28.78,131.51,131.46,0.05863472]
[1742482758763,7.6085,131.5,131.47,7.6096]
[1742482758960,28.78,131.51,131.46,0.05863472]
[1742482759263,28.78,131.51,131.46,7.66903472]
[1742482759463,28.78,131.51,131.46,0.05863472]
[1742482759864,7.6091,131.49,131.46,7.66853472]
[1742482760058,28.78,131.51,131.46,0.05863472]
[1742482760466,7.6086,131.5,131.47,7.6093]
[1742482760954,7.6088,131.49,131.47,7.6093]
[1742482761160,28.78,131.51,131.48,7.6093]
[1742482761362,28.78,131.51,131.46,0.05863472]
[1742482761560,7.6099,131.47,131.46,0.05863472]
[1742482762561,28.76,131.48,131.46,0.05863472]
[1742482762762,28.76,131.5,131.46,0.05863472]
[1742482762955,28.76,131.51,131.46,0.05863472]
[1742482763759,7.6099,131.47,131.46,0.05863472]
[1742482765958,4.136,131.53,131.46,46.32146554]
[1742482766160,28.76,131.52,131.46,46.32146554]
[1742482766361,36.3674,131.52,131.5,7.6081]
[1742482766660,7.6074,131.52,131.5,7.6081]
[1742482766858,28.76,131.54,131.5,0.05658586]
[1742482767458,21.85913082,131.57,131.5,0.05658586]
[1742482767966,17.50283082,131.55,131.5,0.05658586]
[1742482768167,7.6076,131.51,131.5,0.05658586]
[1742482768768,7.6072,131.52,131.5,0.05658586]
[1742482768965,28.76,131.53,131.5,0.05658586]
[1742482769364,7.6073,131.52,131.5,0.05658586]
[1742482769767,7.6076,131.51,131.5,0.05658586]
[1742482770064,28.76,131.53,131.5,0.05658586]
[1742482770366,7.6074,131.52,131.5,0.05658586]
[1742482770758,28.76,131.53,131.5,0.05658586]
[1742482771363,7.607,131.52,131.5,0.05658586]
[1742482771564,28.76,131.53,131.5,0.05658586]
[1742482772363,7.607,131.52,131.5,7.66468586]
[1742482772564,28.76,131.55,131.5,0.05658586]
[1742482772765,7.607,131.53,131.5,0.05658586]
[1742482773067,28.76,131.55,131.5,7.66448586]
[1742482773464,28.76,131.55,131.5,0.05658586]
[1742482773868,7.6069,131.53,131.5,0.05658586]
[1742482774164,28.76,131.55,131.5,0.05658586]
[1742482774369,7.6064,131.54,131.51,7.6072]
[1742482774571,28.76,131.55,131.51,7.6072]
[1742482775173,7.606,131.54,131.51,7.6072]
[1742482775671,28.76,131.55,131.51,7.6072]
[1742482775873,21.85913082,131.57,131.5,0.05658586]
[1742482776074,28.76,131.56,131.5,0.05658586]
[1742482776577,7.6072,131.52,131.5,0.05658586]
[1742482778275,7.6072,131.52,131.5,7.66468586]
[1742482778475,7.6072,131.52,131.5,0.05658586]
[1742482778770,28.76,131.56,131.5,7.66458586]
[1742482779476,393.74,131.59,131.52,17.50283082]
[1742482779670,28.74,131.59,131.52,17.50283082]
[1742482779871,46.24283082,131.59,131.54,0.05342834]
[1742482781573,7.6044,131.57,131.54,7.65902834]
[1742482782173,7.6038,131.58,131.55,7.6052]
[1742482782878,7.6042,131.57,131.54,36.39892834]
[1742482783176,28.74,131.59,131.54,28.79342834]
[1742482783574,7.6039,131.58,131.55,7.6052]
[1742482783974,28.74,131.59,131.54,28.79342834]
[1742482784174,7.6044,131.57,131.54,36.39872834]
[1742482784375,7.6044,131.57,131.54,28.79342834]
[1742482784673,7.6038,131.58,131.56,7.6047]
[1742482784876,28.74,131.59,131.56,7.6047]
[1742482785180,36.3432,131.59,131.56,7.6044]
[1742482785673,7.6032,131.59,131.56,7.6044]
[1742482786076,8.2246,131.62,131.56,17.50283082]
[1742482786273,36.9646,131.62,131.56,17.50283082]
[1742482786469,36.9646,131.62,131.58,0.05007924]
[1742482786673,4.0772,131.64,131.58,0.05007924]
[1742482786873,4.0772,131.64,131.58,17.55291006]
[1742482787380,7.6017,131.62,131.59,7.6026]
[1742482787574,4.0772,131.64,131.59,7.6026]
[1742482787974,7.6016,131.62,131.59,7.6026]
[1742482788181,7.6016,131.62,131.58,17.55291006]
[1742482788881,7.601,131.63,131.6,7.6022]
[1742482789082,4.0772,131.64,131.58,17.50283082]
[1742482789378,4.0772,131.64,131.61,7.6015]
[1742482789571,17.07956758,131.7,131.62,17.50283082]
[1742482789777,17.07956758,131.7,131.64,17.50283082]
[1742482789976,17.07956758,131.7,131.65,7.5991]
[1742482790182,17.07956758,131.7,131.64,17.55743706]
[1742482790687,41.85352617,131.69,131.66,7.5986]
[1742482790883,34.25602617,131.69,131.66,17.50283082]
[1742482791186,34.25602617,131.69,131.66,46.24283082]
[1742482791675,34.25602617,131.69,131.68,7.5978]
[1742482792483,34.25602617,131.69,131.67,7.65434081]
[1742482792781,34.25602617,131.69,131.67,0.05614081]
[1742482793678,34.25602617,131.69,131.68,17.50283082]
[1742482794977,17.29521068,131.71,131.68,17.50283082]
[1742482794978,16.82816953,131.73,131.68,439.10283082]
[1742482795184,17.97741823,131.75,131.74,7.5943]
[1742482795383,16.80808882,131.78,131.74,46.22283082]
[1742482795683,16.80808882,131.78,131.76,17.50283082]
[1742482796079,16.80808882,131.78,131.76,25.09593082]
[1742482796281,16.80808882,131.78,131.76,17.50283082]
[1742482796785,16.80808882,131.78,131.76,25.09593082]
[1742482796985,16.80808882,131.78,131.76,17.50283082]
[1742482797482,16.80808882,131.78,131.76,25.09593082]
[1742482799386,16.80808882,131.78,131.76,17.50283082]
[1742482799883,16.80808882,131.78,131.76,25.09593082]
[1742482800483,16.80808882,131.78,131.77,7.5926]
[1742482800683,34.33757538,131.8,131.77,28.7]
[1742482800890,34.33757538,131.8,131.78,25.09483082]
[1742482801686,34.33757538,131.8,131.79,7.5914]
[1742482802089,34.33757538,131.8,131.77,28.7]
[1742482802289,41.92877538,131.8,131.76,25.15181361]
[1742482802487,34.33757538,131.8,131.76,17.55901361]
[1742482802684,34.33757538,131.8,131.76,0.05618279]
[1742482802888,34.33757538,131.8,131.78,17.50283082]
[1742482803189,34.33757538,131.8,131.78,25.09443082]
[1742482804490,34.33757538,131.8,131.78,17.50283082]
[1742482804692,41.92897538,131.8,131.78,17.50283082]
[1742482805192,34.33757538,131.8,131.76,46.23901361]
[1742482805585,34.33757538,131.8,131.76,53.83181361]